fUST/lending_fUST_20241001
["ID","MTS","AMOUNT","RATE_DAILY","PERIOD"]
[339590906,1727721079984,500.0,0.00021999,120]
[339590907,1727721081124,689.24,0.00021999,120]
[339590908,1727721081557,500.0,0.00021999,120]
[339590909,1727721084886,2000.0,0.00021,60]
[339590910,1727721085845,500.0,0.00021999,120]
[339590911,1727721086020,500.0,0.00021999,120]
[339590912,1727721088341,500.0,0.00021999,120]
[339590913,1727721090949,500.0,0.00021999,120]
[339590914,1727721093375,500.0,0.00021999,120]
[339590915,1727721093965,500.0,0.00021999,120]
[339590916,1727721098587,484.59979676,0.00021999,120]
[339590917,1727721099365,500.0,0.00021999,120]
[339590918,1727721101434,500.0,0.00021999,120]
[339590919,1727721102550,500.0,0.00021999,120]
[339590920,1727721103697,987.26,0.00021999,120]
[339590921,1727721107575,500.0,0.00021999,120]
[339590922,1727721108837,500.0,0.00021999,120]
[339590923,1727721109014,745.05,0.00021999,120]
[339590924,1727721109452,500.0,0.00021999,120]
[339590925,1727721111131,500.0,0.00021999,120]
[339590926,1727721111426,500.0,0.00021999,120]
[339590927,1727721112238,508.85227209,0.00021999,120]
[339590928,1727721112815,500.0,0.00021999,120]
[339590929,1727721113845,500.0,0.00021999,120]
[339590930,1727721115622,500.0,0.00021999,120]
[339590931,1727721117155,500.0,0.00021999,120]
[339590932,1727721117268,583.25,0.00021999,120]
[339590933,1727721119825,500.0,0.00021999,120]
[339590934,1727721120188,500.0,0.00021999,120]
[339590935,1727721122457,500.0,0.00021999,120]
[339590936,1727721127623,500.0,0.00021999,120]
[339590937,1727721130104,500.0,0.00021999,120]
[339590938,1727721130949,500.0,0.00021999,120]
[339590939,1727721133914,500.0,0.00021999,120]
[339590940,1727721134392,500.0,0.00021999,120]
[339590941,1727721134470,531.46,0.00021999,120]
[339590942,1727721139342,534.30167346,0.00021999,120]
[339590943,1727721148061,708.94,0.00021999,120]
[339590944,1727721148464,500.0,0.00021999,120]
[339590945,1727721149013,500.0,0.00021999,120]
[339590946,1727721152492,500.0,0.00021999,120]
[339590947,1727721155837,577.04617441,0.00021999,120]
[339590948,1727721156563,510.61,0.00021999,120]
[339590949,1727721156907,500.0,0.00021999,120]
[339590950,1727721157707,500.0,0.00021999,120]
[339590951,1727721158214,500.0,0.00021999,120]
[339590952,1727721159376,706.93,0.00021999,120]
[339590953,1727721165300,500.0,0.00021999,120]
[339590954,1727721167514,500.0,0.00021999,120]
[339590955,1727721168199,500.0,0.00021999,120]
[339590956,1727721168274,751.39,0.00021999,120]
[339590957,1727721175190,500.0,0.00021999,120]
[339590958,1727721175675,500.0,0.00021999,120]
[339590959,1727721181190,500.0,0.00021999,120]
[339590960,1727721183309,500.0,0.00021999,120]
[339590961,1727721183713,250.0,0.00021999,120]
[339590962,1727721184168,915.58,0.00021999,120]
[339590963,1727721184657,500.0,0.00021999,120]
[339590964,1727721185990,500.0,0.00021999,120]
[339590965,1727721189507,500.0,0.00021999,120]
[339590966,1727721190404,500.0,0.00021999,120]
[339590967,1727721193034,500.0,0.00021999,120]
[339590968,1727721193440,500.0,0.00021999,120]
[339590969,1727721198737,500.0,0.00021999,120]
[339590970,1727721199278,500.0,0.00021999,120]
[339590971,1727721200524,500.0,0.00021999,120]
[339590972,1727721201903,500.0,0.00021999,120]
[339590973,1727721201963,868.42,0.00021999,120]
[339590974,1727721210901,500.0,0.00021999,120]
[339590975,1727721211717,500.0,0.00021999,120]
[339590976,1727721211781,500.0,0.00021999,120]
[339590977,1727721216387,500.0,0.00021999,120]
[339590978,1727721220827,564.62935312,0.00021999,120]
[339590979,1727721222049,517.81193335,0.00021999,120]
[339590980,1727721222107,500.0,0.00021999,120]
[339590981,1727721224912,646.76,0.00021999,120]
[339590982,1727721225595,500.0,0.00021999,120]
[339590983,1727721226165,500.0,0.00021999,120]
[339590984,1727721227603,1257.05,0.00021999,120]
[339590985,1727721229997,500.0,0.00021999,120]
[339590986,1727721232734,500.0,0.00021999,120]
[339590987,1727721234273,500.0,0.00021999,120]
[339590988,1727721235075,1498.31,0.00021999,120]
[339590989,1727721240982,654.56,0.00021999,120]
[339590990,1727721242920,500.0,0.00021999,120]
[339590991,1727721246058,1329.32,0.00021999,120]
[339590992,1727721249032,500.0,0.00021999,120]
[339590993,1727721251383,500.0,0.00021999,120]
[339590994,1727721255842,500.0,0.00021999,120]
[339590995,1727721257415,500.0,0.00021999,120]
[339590996,1727721258564,500.0,0.00021999,120]
[339590997,1727721264769,500.0,0.00021999,120]
[339590998,1727721265297,500.0,0.00021999,120]
[339590999,1727721266472,500.0,0.00021999,120]
[339591000,1727721270226,500.0,0.00021999,120]
[339591001,1727721270848,500.0,0.00021999,120]
[339591002,1727721282025,500.0,0.00021999,120]
[339591003,1727721282174,500.0,0.00021999,120]
[339591004,1727721282306,539.82150671,0.00021999,120]
[339591005,1727721283274,500.0,0.00021999,120]
[339591006,1727721285542,1422.27,0.00021999,120]
[339591007,1727721286040,500.0,0.00021999,120]
[339591008,1727721286381,500.0,0.00021999,120]
[339591009,1727721293889,849.33,0.00021999,120]
[339591010,1727721295755,500.0,0.00021999,120]
[339591011,1727721302665,500.0,0.00021999,120]
[339591012,1727721305959,500.0,0.00021999,120]
[339591013,1727721306660,500.0,0.00021999,120]
[339591014,1727721306965,583.27,0.00021999,120]
[339591015,1727721308349,658.21,0.00021999,120]
[339591016,1727721308471,500.0,0.00021999,120]
[339591017,1727721308967,593.39,0.00021999,120]
[339591018,1727721311478,502.02,0.00021999,120]
[339591019,1727721312858,500.0,0.00021999,120]
[339591020,1727721318693,500.0,0.00021999,120]
[339591021,1727721318768,500.0,0.00021999,120]
[339591022,1727721326225,555.05,0.00021999,120]
[339591023,1727721326596,500.0,0.00021999,120]
[339591024,1727721327059,500.0,0.00021999,120]
[339591025,1727721328238,500.0,0.00021999,120]
[339591026,1727721332035,500.0,0.00021999,120]
[339591027,1727721332833,500.0,0.00021999,120]
[339591028,1727721336936,500.0,0.00021999,120]
[339591029,1727721341467,433.82269904,0.00021999,120]
[339591030,1727721341547,500.0,0.00021999,120]
[339591031,1727721347443,500.0,0.00021999,120]
[339591032,1727721351894,500.0,0.00021999,120]
[339591033,1727721354385,571.42,0.00021999,120]
[339591034,1727721354900,500.0,0.00021999,120]
[339591035,1727721355605,500.0,0.00021999,120]
[339591036,1727721358618,500.0,0.00021999,120]
[339591037,1727721359140,1134.61,0.00021999,120]
[339591038,1727721360103,1499.22,0.00021999,120]
[339591039,1727721361103,234.60758315,0.00021999,120]
[339591040,1727721361900,500.0,0.00021999,120]
[339591041,1727721370267,677.47,0.00021999,120]
[339591042,1727721370525,500.0,0.00021999,120]
[339591043,1727721370593,500.0,0.00021999,120]
[339591044,1727721373015,500.0,0.00021999,120]
[339591045,1727721373247,558.95,0.00021999,120]
[339591046,1727721383353,500.0,0.00021999,120]
[339591047,1727721390525,500.0,0.00021999,120]
[339591048,1727721391750,500.0,0.00021999,120]
[339591049,1727721394511,500.0,0.00021999,120]
[339591050,1727721398734,500.0,0.00021999,120]
[339591051,1727721399568,500.0,0.00021999,120]
[339591052,1727721399640,500.0,0.00021999,120]
[339591053,1727721404827,508.60070168,0.00021999,120]
[339591054,1727721407358,500.0,0.00021999,120]
[339591055,1727721408639,552.35,0.00021999,120]
[339591056,1727721410418,500.0,0.00021999,120]
[339591057,1727721415366,305.13,0.00021999,120]
[339591058,1727721416954,579.44,0.00021999,120]
[339591059,1727721417078,1011.79,0.00021999,120]
[339591060,1727721420168,500.0,0.00021999,120]
[339591061,1727721422829,500.0,0.00021999,120]
[339591062,1727721423776,500.0,0.00021999,120]
[339591063,1727721426141,583.46,0.00021999,120]
[339591064,1727721427600,500.0,0.00021999,120]
[339591065,1727721430514,500.0,0.00021999,120]
[339591066,1727721432103,500.0,0.00021999,120]
[339591067,1727721432202,500.0,0.00021999,120]
[339591068,1727721437173,500.0,0.00021999,120]
[339591069,1727721437789,500.0,0.00021999,120]
[339591070,1727721439549,724.0,0.00021999,120]
[339591071,1727721441290,706.36,0.00021999,120]
[339591072,1727721448848,500.0,0.00021999,120]
[339591073,1727721451460,500.0,0.00021999,120]
[339591074,1727721453194,500.0,0.00021999,120]
[339591075,1727721454203,500.0,0.00021999,120]
[339591076,1727721455896,627.28,0.00021999,120]
[339591077,1727721456963,500.0,0.00021999,120]
[339591078,1727721457773,500.0,0.00021999,120]
[339591079,1727721459033,500.0,0.00021999,120]
[339591080,1727721459417,500.0,0.00021999,120]
[339591081,1727721465560,500.0,0.00021999,120]
[339591082,1727721470524,500.0,0.00021999,120]
[339591083,1727721472440,500.0,0.00021999,120]
[339591084,1727721473016,1012.23,0.00021999,120]
[339591085,1727721475662,500.0,0.00021999,120]
[339591086,1727721476948,500.0,0.00021999,120]
[339591087,1727721478609,1204.67,0.00021999,120]
[339591088,1727721485984,500.0,0.00021999,120]
[339591089,1727721488298,500.0,0.00021999,120]
[339591090,1727721496342,500.0,0.00021999,120]
[339591091,1727721497981,500.0,0.00021999,120]
[339591092,1727721501395,500.0,0.00021999,120]
[339591093,1727721503201,500.0,0.00021999,120]
[339591094,1727721507814,500.0,0.00021999,120]
[339591095,1727721507938,500.0,0.00021999,120]
[339591096,1727721509214,500.0,0.00021999,120]
[339591097,1727721510496,1273.94,0.00021999,120]
[339591098,1727721511075,500.0,0.00021999,120]
[339591099,1727721513849,500.0,0.00021999,120]
[339591100,1727721514894,500.0,0.00021999,120]
[339591101,1727721515093,517.00595821,0.00021999,120]
[339591102,1727721517461,500.0,0.00021999,120]
[339591103,1727721517530,531.92,0.00021999,120]
[339591104,1727721517726,500.0,0.00021999,120]
[339591105,1727721522611,500.0,0.00021999,120]
[339591107,1727721527587,1000.0,0.00021999,120]
[339591108,1727721536721,639.69,0.00021999,120]
[339591109,1727721538378,500.0,0.00021999,120]
[339591110,1727721541194,500.0,0.00021999,120]
[339591111,1727721543138,818.31,0.00021999,120]
[339591112,1727721544350,1188.76,0.00021999,120]
[339591113,1727721546423,500.0,0.00021999,120]
[339591114,1727721550167,500.0,0.00021999,120]
[339591115,1727721551012,500.0,0.00021999,120]
[339591116,1727721553759,558.96,0.00021999,120]
[339591117,1727721556724,500.0,0.00021999,120]
[339591118,1727721557513,500.0,0.00021999,120]
[339591119,1727721561486,500.0,0.00021999,120]
[339591120,1727721561541,500.0,0.00021999,120]
[339591121,1727721566336,500.0,0.00021999,120]
[339591122,1727721567552,575.52110154,0.00021999,120]
[339591123,1727721571892,500.0,0.00021999,120]
[339591124,1727721572002,500.0,0.00021999,120]
[339591125,1727721574774,500.0,0.00021999,120]
[339591126,1727721577265,801.12,0.00021999,120]
[339591127,1727721579291,500.0,0.00021999,120]
[339591128,1727721581076,666.31,0.00021999,120]
[339591129,1727721587848,500.0,0.00021999,120]
[339591130,1727721588755,500.0,0.00021999,120]
[339591131,1727721590743,500.0,0.00021999,120]
[339591132,1727721591144,500.0,0.00021999,120]
[339591133,1727721591849,500.0,0.00021999,120]
[339591134,1727721592030,535.66,0.00021999,120]
[339591135,1727721594627,500.0,0.00021999,120]
[339591136,1727721599409,893.48,0.00021999,120]
[339591137,1727721603107,417.22336842,0.00021999,120]
[339591138,1727721604532,500.0,0.00021999,120]
[339591139,1727721606291,371.07611459,0.00021999,120]
[339591140,1727721610745,500.0,0.00021999,120]
[339591141,1727721612023,500.0,0.00021999,120]
[339591142,1727721612090,500.0,0.00021999,120]
[339591143,1727721612323,500.0,0.00021999,120]
[339591144,1727721613297,500.0,0.00021999,120]
[339591145,1727721616643,500.0,0.00021999,120]
[339591146,1727721616711,500.0,0.00021999,120]
[339591147,1727721619973,500.0,0.00021999,120]
[339591148,1727721621063,500.0,0.00021999,120]
[339591149,1727721622944,1507.2,0.00021999,120]
[339591150,1727721627509,500.0,0.00021999,120]
[339591151,1727721634366,500.0,0.00021999,120]
[339591152,1727721634483,500.0,0.00021999,120]
[339591153,1727721634974,649.25,0.00021999,120]
[339591154,1727721643021,500.0,0.00021999,120]
[339591155,1727721644445,500.0,0.00021999,120]
[339591156,1727721651132,500.0,0.00021999,120]
[339591157,1727721651601,500.0,0.00021999,120]
[339591158,1727721654121,1066.17,0.00021999,120]
[339591159,1727721654343,500.0,0.00021999,120]
[339591160,1727721661344,500.0,0.00021999,120]
[339591161,1727721664613,500.0,0.00021999,120]
[339591162,1727721667669,529.40044147,0.00021999,120]
[339591163,1727721670472,500.0,0.00021999,120]
[339591164,1727721671057,1678.54,0.00021999,120]
[339591165,1727721675251,573.80757366,0.00021999,120]
[339591166,1727721675475,500.0,0.00021999,120]
[339591167,1727721679048,500.0,0.00021999,120]
[339591168,1727721679734,500.0,0.00021999,120]
[339591169,1727721681545,500.0,0.00021999,120]
[339591170,1727721681695,500.0,0.00021999,120]
[339591171,1727721684856,500.0,0.00021999,120]
[339591172,1727721687666,861.15,0.00021999,120]
[339591173,1727721688417,500.0,0.00021999,120]
[339591174,1727721688488,500.0,0.00021999,120]
[339591175,1727721690052,500.0,0.00021999,120]
[339591176,1727721690123,500.0,0.00021999,120]
[339591177,1727721690220,500.0,0.00021999,120]
[339591178,1727721692279,1220.85,0.00021999,120]
[339591179,1727721693033,500.0,0.00021999,120]
[339591180,1727721694850,462.21473712,0.00021999,120]
[339591181,1727721695155,801.77,0.00021999,120]
[339591182,1727721698928,500.0,0.00021999,120]
[339591183,1727721701802,500.0,0.00021999,120]
[339591184,1727721701897,501.99,0.00021999,120]
[339591185,1727721708097,500.0,0.00021999,120]
[339591186,1727721710487,601.15,0.00021999,120]
[339591187,1727721713449,232.46149043,0.00021999,120]
[339591188,1727721714479,500.0,0.00021999,120]
[339591189,1727721717131,500.0,0.00021999,120]
[339591190,1727721718270,500.0,0.00021999,120]
[339591191,1727721721805,567.75,0.00021999,120]
[339591192,1727721721913,500.0,0.00021999,120]
[339591193,1727721722483,500.0,0.00021999,120]
[339591194,1727721726383,500.0,0.00021999,120]
[339591195,1727721726580,500.0,0.00021999,120]
[339591196,1727721727478,500.0,0.00021999,120]
[339591197,1727721728333,500.0,0.00021999,120]
[339591198,1727721729513,482.66120743,0.00021999,120]
[339591199,1727721729783,500.0,0.00021999,120]
[339591200,1727721734427,500.0,0.00021999,120]
[339591201,1727721736649,244.20420326,0.00021999,120]
[339591202,1727721736807,1154.48,0.00021999,120]
[339591203,1727721737396,500.0,0.00021999,120]
[339591204,1727721741586,500.0,0.00021999,120]
[339591205,1727721743962,500.0,0.00021999,120]
[339591206,1727721749922,500.0,0.00021999,120]
[339591207,1727721750079,500.0,0.00021999,120]
[339591208,1727721750592,500.0,0.00021999,120]
[339591209,1727721754247,500.0,0.00021999,120]
[339591210,1727721755417,526.19,0.00021999,120]
[339591211,1727721757139,509.32,0.00021999,120]
[339591212,1727721758575,500.0,0.00021999,120]
[339591213,1727721759436,500.0,0.00021999,120]
[339591214,1727721765039,500.0,0.00021999,120]
[339591215,1727721768666,500.0,0.00021999,120]
[339591216,1727721772345,810.59,0.00021999,120]
[339591217,1727721772594,500.0,0.00021999,120]
[339591218,1727721775057,500.0,0.00021999,120]
[339591219,1727721777051,523.19442121,0.00021999,120]
[339591220,1727721777129,500.0,0.00021999,120]
[339591221,1727721777643,500.0,0.00021999,120]
[339591222,1727721778211,500.0,0.00021999,120]
[339591223,1727721779372,535.67,0.00021999,120]
[339591224,1727721785842,720.08,0.00021999,120]
[339591225,1727721786564,500.0,0.00021999,120]
[339591226,1727721787805,500.0,0.00021999,120]
[339591227,1727721787867,500.0,0.00021999,120]
[339591228,1727721788787,613.03,0.00021999,120]
[339591229,1727721790676,500.0,0.00021999,120]
[339591230,1727721797786,500.0,0.00021999,120]
[339591231,1727721800256,877.43,0.00021999,120]
[339591232,1727721803181,832.23,0.00021999,120]
[339591233,1727721809990,500.0,0.00021999,120]
[339591234,1727721811337,500.0,0.00021999,120]
[339591235,1727721812874,619.81,0.00021999,120]
[339591236,1727721813522,586.22,0.00021999,120]
[339591237,1727721819650,500.0,0.00021999,120]
[339591238,1727721827200,500.0,0.00021999,120]
[339591239,1727721828856,500.0,0.00021999,120]
[339591240,1727721829119,500.0,0.00021999,120]
[339591241,1727721830042,500.0,0.00021999,120]
[339591242,1727721839226,500.0,0.00021999,120]
[339591243,1727721840673,500.0,0.00021999,120]
[339591244,1727721848693,1435.88,0.00021999,120]
[339591245,1727721850144,464.93912268,0.00021999,120]
[339591246,1727721851307,500.0,0.00021999,120]
[339591247,1727721851799,513.34,0.00021999,120]
[339591248,1727721852762,500.0,0.00021999,120]
[339591249,1727721856638,500.0,0.00021999,120]
[339591250,1727721861571,1006.72,0.00021999,120]
[339591251,1727721861652,500.0,0.00021999,120]
[339591252,1727721861717,624.90683124,0.00021999,120]
[339591253,1727721861790,500.0,0.00021999,120]
[339591254,1727721863263,500.0,0.00021999,120]
[339591255,1727721865760,180.96440949,0.00021999,120]
[339591256,1727721866742,500.0,0.00021999,120]
[339591257,1727721868027,622.19,0.00021999,120]
[339591258,1727721873679,798.74,0.00021999,120]
[339591259,1727721874408,500.0,0.00021999,120]
[339591260,1727721877510,500.0,0.00021999,120]
[339591261,1727721878595,500.0,0.00021999,120]
[339591262,1727721879431,500.0,0.00021999,120]
[339591263,1727721880547,500.0,0.00021999,120]
[339591264,1727721892613,500.0,0.00021999,120]
[339591265,1727721894048,500.0,0.00021999,120]
[339591266,1727721894367,500.0,0.00021999,120]
[339591267,1727721894813,500.0,0.00021999,120]
[339591268,1727721898446,500.0,0.00021999,120]
[339591269,1727721902913,500.0,0.00021999,120]
[339591270,1727721906570,568.67,0.00021999,120]
[339591271,1727721907902,813.94,0.00021999,120]
[339591272,1727721910541,500.0,0.00021999,120]
[339591273,1727721911143,630.78,0.00021999,120]
[339591274,1727721915261,500.0,0.00021999,120]
[339591275,1727721920280,500.0,0.00021999,120]
[339591276,1727721922259,500.0,0.00021999,120]
[339591277,1727721926626,500.0,0.00021999,120]
[339591278,1727721930943,500.0,0.00021999,120]
[339591279,1727721931331,500.0,0.00021999,120]
[339591280,1727721932013,500.0,0.00021999,120]
[339591281,1727721933484,500.0,0.00021999,120]
[339591282,1727721933738,500.0,0.00021999,120]
[339591283,1727721933813,500.0,0.00021999,120]
[339591284,1727721933907,500.0,0.00021999,120]
[339591285,1727721935082,234.24539042,0.00021999,120]
[339591286,1727721936720,500.0,0.00021999,120]
[339591287,1727721939416,500.0,0.00021999,120]
[339591288,1727721939721,500.0,0.00021999,120]
[339591289,1727721940798,500.0,0.00021999,120]
[339591290,1727721945154,500.0,0.00021999,120]
[339591291,1727721945222,1169.99,0.00021999,120]
[339591292,1727721948421,576.1,0.00021999,120]
[339591293,1727721949905,1106.38,0.00021999,120]
[339591294,1727721950507,1087.33,0.00021999,120]
[339591295,1727721952466,500.0,0.00021999,120]
[339591296,1727721953294,202.47503859,0.00021999,120]
[339591297,1727721962391,500.0,0.00021999,120]
[339591298,1727721964841,500.0,0.00021999,120]
[339591299,1727721968241,500.0,0.00021999,120]
[339591300,1727721969159,500.0,0.00021999,120]
[339591301,1727721974839,500.0,0.00021999,120]
[339591302,1727721977791,1436.75,0.00021999,120]
[339591303,1727721978732,946.13,0.00021999,120]
[339591304,1727721980738,500.0,0.00021999,120]
[339591305,1727721983396,500.0,0.00021999,120]
[339591306,1727721983612,500.0,0.00021999,120]
[339591307,1727721986953,500.0,0.00021999,120]
[339591308,1727721987025,500.0,0.00021999,120]
[339591309,1727721990048,500.0,0.00021999,120]
[339591310,1727721990846,500.0,0.00021999,120]
[339591311,1727721991368,500.0,0.00021999,120]
[339591312,1727721991588,500.0,0.00021999,120]
[339591313,1727721992966,500.0,0.00021999,120]
[339591314,1727721994527,500.0,0.00021999,120]
[339591315,1727722001523,500.0,0.00021999,120]
[339591316,1727722003410,500.0,0.00021999,120]
[339591317,1727722010374,587.49,0.00021999,120]
[339591318,1727722012408,500.0,0.00021999,120]
[339591319,1727722013168,969.63,0.00021999,120]
[339591320,1727722013770,500.0,0.00021999,120]
[339591321,1727722014495,513.36,0.00021999,120]
[339591322,1727722014778,500.0,0.00021999,120]
[339591323,1727722015102,500.0,0.00021999,120]
[339591324,1727722022237,500.0,0.00021999,120]
[339591325,1727722022304,485.27491604,0.00021999,120]
[339591326,1727722023792,500.0,0.00021999,120]
[339591327,1727722024458,500.0,0.00021999,120]
[339591328,1727722024553,500.0,0.00021999,120]
[339591329,1727722032063,292.42,0.00021999,120]
[339591330,1727722032138,500.0,0.00021999,120]
[339591331,1727722032959,500.0,0.00021999,120]
[339591332,1727722034877,500.0,0.00021999,120]
[339591333,1727722035042,500.0,0.00021999,120]
[339591334,1727722050877,500.0,0.00021999,120]
[339591335,1727722053629,500.0,0.00021999,120]
[339591336,1727722055420,343.4382587,0.00021999,120]
[339591337,1727722057127,500.0,0.00021999,120]
[339591338,1727722061499,500.0,0.00021999,120]
[339591339,1727722061569,590.78,0.00021999,120]
[339591340,1727722063452,676.93,0.00021999,120]
[339591341,1727722065254,500.0,0.00021999,120]
[339591342,1727722066113,500.0,0.00021999,120]
[339591343,1727722069474,500.0,0.00021999,120]
[339591344,1727722071594,500.0,0.00021999,120]
[339591345,1727722074552,500.0,0.00021999,120]
[339591346,1727722077159,500.0,0.00021999,120]
[339591347,1727722077790,500.0,0.00021999,120]
[339591348,1727722078135,-959.4724802,0.00012092,2]
[339591349,1727722078158,-300.0,0.00012227,2]
[339591350,1727722078182,-24900.0,0.00012228,2]
[339591351,1727722078206,-199.4351893,0.00012569,2]
[339591352,1727722078229,-500.0,0.00012764,2]
[339591353,1727722078253,-500.0,0.00013068,2]
[339591354,1727722078277,-569.510902,0.00013151,2]
[339591355,1727722078300,-7069.19095078,0.00013312,2]
[339591356,1727722078322,-671.2961779,0.00013332,2]
[339591357,1727722078345,-9299.84527477,0.000134,2]
[339591358,1727722078370,-420.0,0.0001342,2]
[339591359,1727722078393,-1000.0,0.000135,2]
[339591360,1727722078416,-150.0,0.00013565,2]
[339591361,1727722078438,-525.0,0.00013565,2]
[339591362,1727722078460,-1217.0,0.00013565,2]
[339591363,1727722078482,-424.21591622,0.00013568,2]
[339591364,1727722078504,-424.21591612,0.0001357,2]
[339591365,1727722078527,-424.21591612,0.00013572,2]
[339591366,1727722078549,-424.21591612,0.00013574,2]
[339591367,1727722078572,-424.21591612,0.00013576,2]
[339591368,1727722078595,-424.21591612,0.00013578,2]
[339591369,1727722078619,-1396.82042406,0.00013579,2]
[339591370,1727722078642,-424.21591612,0.0001358,2]
[339591371,1727722078665,-424.21591612,0.00013583,2]
[339591372,1727722078688,-424.21591612,0.00013585,2]
[339591373,1727722078710,-424.21591612,0.00013587,2]
[339591374,1727722078732,-424.21591612,0.00013589,2]
[339591375,1727722078756,-424.21591612,0.00013591,2]
[339591376,1727722078779,-424.21591612,0.00013593,2]
[339591377,1727722078802,-424.21591612,0.00013595,2]
[339591378,1727722078824,-424.21591612,0.00013597,2]
[339591379,1727722078847,-150.112233,0.000136,2]
[339591380,1727722078871,-150.112233,0.000136,2]
[339591381,1727722078897,-150.112233,0.000136,2]
[339591382,1727722078919,-150.112233,0.000136,2]
[339591383,1727722078942,-150.112233,0.000136,2]
[339591384,1727722078964,-150.112233,0.000136,2]
[339591385,1727722078988,-209.3635278,0.00013612,2]
[339591386,1727722079011,-209.3635278,0.00013612,2]
[339591387,1727722079034,-209.3635278,0.00013612,2]
[339591388,1727722079058,-112136.932584,0.00013667,2]
[339591389,1727722079083,-44902.0107388,0.00013667,2]
[339591390,1727722079109,-151.0,0.00013668,2]
[339591391,1727722079131,-151.0,0.00013668,2]
[339591392,1727722079154,-151.0,0.00013668,2]
[339591393,1727722079179,-151.0,0.00013668,2]
[339591394,1727722079203,-527.982006,0.00013668,2]
[339591395,1727722079226,-527.982006,0.00013668,2]
[339591396,1727722079249,-151.0,0.00013668,2]
[339591397,1727722079274,-424.011732,0.00013668,2]
[339591398,1727722079296,-350.486018,0.00013668,2]
[339591399,1727722079320,-424.011732,0.00013668,2]
[339591400,1727722079343,-222.0098,0.00013668,2]
[339591401,1727722079366,-350.486018,0.00013668,2]
[339591402,1727722079393,-238.350069,0.00013668,2]
[339591403,1727722079416,-167.126911,0.00013668,2]
[339591404,1727722079440,-238.350069,0.00013668,2]
[339591405,1727722079463,-167.126911,0.00013668,2]
[339591406,1727722079485,-2252.379154,0.00013668,2]